fUSD/lending_fUSD_20250120
["ID","MTS","AMOUNT","RATE_DAILY","PERIOD"]
[349692703,1737378641311,-740.88475071,0.0001913,2]
[349692704,1737378641321,-416.13478509,0.00019157,2]
[349692705,1737378641331,-500.0,0.00019178,2]
[349692706,1737378641340,-271.23105977,0.00019178,2]
[349692707,1737378641350,-506.64335937,0.00019178,2]
[349692708,1737378641359,-82.95016858,0.00019178,2]
[349692709,1737378641371,-421.49870772,0.00019178,2]
[349692710,1737378641380,-500.0,0.00019178,2]
[349692711,1737378641391,-500.0,0.00019178,2]
[349692712,1737378641402,-500.0,0.00019178,2]
[349692713,1737378641412,-500.0,0.00019178,2]
[349692714,1737378641421,-500.0,0.00019178,2]
[349692715,1737378641431,-500.0,0.00019178,2]
[349692716,1737378641441,-500.0,0.00019178,2]
[349692717,1737378641455,-500.0,0.00019178,2]
[349692718,1737378641464,-500.0,0.00019178,2]
[349692719,1737378641475,-500.0,0.00019178,2]
[349692720,1737378641486,-518.82853944,0.00019178,2]
[349692721,1737378641496,-500.0,0.00019178,2]
[349692722,1737378641505,-500.0,0.00019178,2]
[349692723,1737378641516,-503.5151053,0.00019178,2]
[349692724,1737378641526,-500.0,0.00019178,2]
[349692725,1737378641535,-683.97,0.00019178,2]
[349692726,1737378641545,-500.0,0.00019178,2]
[349692727,1737378641555,-500.0,0.00019178,2]
[349692728,1737378641564,-309.22195714,0.00019178,2]
[349692729,1737378641578,-190.77804286,0.00019178,2]
[349692730,1737378641588,-500.0,0.00019178,2]
[349692731,1737378641598,-61.80078946,0.00019178,2]
[349692732,1737378641670,-438.19921054,0.00019178,2]
[349692733,1737378641680,-500.0,0.00019178,2]
[349692734,1737378641689,-500.0,0.00019178,2]
[349692735,1737378641699,-311.24691757,0.00019178,2]
[349692736,1737378641765,-188.75308243,0.00019178,2]
[349692737,1737378641775,-500.0,0.00019178,2]
[349692738,1737378641784,-500.0,0.00019178,2]
[349692739,1737378641794,-500.0,0.00019178,2]
[349692740,1737378641804,-500.0,0.00019178,2]
[349692741,1737378641814,-500.0,0.00019178,2]
[349692742,1737378641824,-500.0,0.00019178,2]
[349692743,1737378641833,-500.0,0.00019178,2]
[349692744,1737378641843,-500.0,0.00019178,2]
[349692745,1737378641853,-500.0,0.00019178,2]
[349692747,1737378641862,-500.0,0.00019178,2]
[349692749,1737378641872,-500.0,0.00019178,2]
[349692751,1737378641882,-322.72570533,0.00019178,2]
[349692753,1737378641892,-500.0,0.00019178,2]
[349692754,1737378641902,-500.0,0.00019178,2]
[349692755,1737378641911,-500.0,0.00019178,2]
[349692756,1737378641921,-500.0,0.00019178,2]
[349692757,1737378641931,-500.0,0.00019178,2]
[349692758,1737378641940,-500.0,0.00019178,2]
[349692759,1737378641949,-500.0,0.00019178,2]
[349692760,1737378641959,-799.41501685,0.00019178,2]
[349692761,1737378641968,-500.0,0.00019178,2]
[349692762,1737378641978,-500.0,0.00019178,2]
[349692763,1737378641991,-500.0,0.00019178,2]
[349692764,1737378642000,-500.0,0.00019178,2]
[349692765,1737378642010,-500.0,0.00019178,2]
[349692766,1737378642020,-500.0,0.00019178,2]
[349692767,1737378642030,-500.0,0.00019178,2]
[349692768,1737378642039,-500.0,0.00019178,2]
[349692769,1737378642049,-500.0,0.00019178,2]
[349692770,1737378642058,-500.0,0.00019178,2]
[349692771,1737378642068,-500.0,0.00019178,2]
[349692772,1737378642078,-500.0,0.00019178,2]
[349692773,1737378642087,-500.0,0.00019178,2]
[349692774,1737378642096,-500.0,0.00019178,2]
[349692775,1737378642106,-500.0,0.00019178,2]
[349692776,1737378642116,-500.0,0.00019178,2]
[349692777,1737378642125,-500.0,0.00019178,2]
[349692778,1737378642135,-500.0,0.00019178,2]
[349692779,1737378642145,-95.69317475,0.00019178,2]
[349692780,1737378642157,-404.30682525,0.00019178,2]
[349692781,1737378642166,-500.0,0.00019178,2]
[349692782,1737378642176,-500.0,0.00019178,2]
[349692783,1737378642185,-500.0,0.00019178,2]
[349692784,1737378642195,-500.0,0.00019178,2]
[349692785,1737378642204,-500.0,0.00019178,2]
[349692786,1737378642214,-500.0,0.00019178,2]
[349692787,1737378642223,-500.0,0.00019178,2]
[349692788,1737378642233,-276.24999539,0.00019178,2]
[349692789,1737378642245,-223.75000461,0.00019178,2]
[349692790,1737378642255,-500.0,0.00019178,2]
[349692791,1737378642264,-500.0,0.00019178,2]
[349692792,1737378642274,-511.99,0.00019178,2]
[349692793,1737378642284,-500.0,0.00019178,2]
[349692794,1737378642294,-248.94249537,0.00019178,2]
[349692795,1737378642990,-32.72333046,0.00019178,2]
[349692810,1737378645878,-284.42417417,0.00019178,2]
[349692812,1737378645888,-500.0,0.00019178,2]
[349692814,1737378645898,-29.19352675,0.00019178,2]
[349692816,1737378645909,-383.4563674,0.00019178,2]
[349692818,1737378646300,-275.73010585,0.00019178,2]
[349692820,1737378646310,-500.0,0.00019178,2]
[349692821,1737378646319,-295.13969415,0.00019178,2]
[349692824,1737378646332,-204.86030585,0.00019178,2]
[349692826,1737378646341,-500.0,0.00019178,2]
[349692828,1737378646350,-500.0,0.00019178,2]
[349692830,1737378646360,-480.84458284,0.00019178,2]
[349692833,1737378646377,-200.0,0.00018796,2]
[349692835,1737378646388,-19.15541716,0.00019178,2]
[349692837,1737378646399,-500.0,0.00019178,2]
[349692839,1737378646409,-500.0,0.00019178,2]
[349692840,1737378646418,-500.0,0.00019178,2]
[349692842,1737378646428,-500.0,0.00019178,2]
[349692845,1737378646437,-134.84458284,0.00019178,2]
[349692849,1737378646458,-365.15541716,0.00019178,2]
[349692851,1737378646468,-500.0,0.00019178,2]
[349692853,1737378646478,-500.0,0.00019178,2]
[349692855,1737378646490,-444.83458284,0.00019178,2]
[349692860,1737378646527,-55.16541716,0.00019178,2]
[349692862,1737378646537,-504.93570891,0.00019178,2]
[349692864,1737378646547,-500.0,0.00019178,2]
[349692887,1737378646759,-745.11,0.00019178,2]
[349692889,1737378646769,-500.0,0.00019178,2]
[349692891,1737378646779,-500.0,0.00019178,2]
[349692893,1737378646788,-511.12554621,0.00019178,2]
[349692895,1737378646797,-500.0,0.00019178,2]
[349692897,1737378646807,-500.0,0.00019178,2]
[349692899,1737378646816,-500.0,0.00019178,2]
[349692901,1737378646825,-708.93,0.00019178,2]
[349692903,1737378646834,-500.0,0.00019178,2]
[349692905,1737378646843,-500.0,0.00019178,2]
[349692907,1737378646853,-500.0,0.00019178,2]
[349692909,1737378646863,-500.0,0.00019178,2]
[349692911,1737378646872,-500.0,0.00019178,2]
[349692913,1737378646882,-500.0,0.00019178,2]
[349692915,1737378646891,-500.0,0.00019178,2]
[349692917,1737378646901,-500.0,0.00019178,2]
[349692919,1737378646911,-501.55,0.00019178,2]
[349692921,1737378646921,-500.0,0.00019178,2]
[349692923,1737378646930,-530.30666549,0.00019178,2]
[349692925,1737378646940,-500.0,0.00019178,2]
[349692927,1737378646950,-500.0,0.00019178,2]
[349692929,1737378646960,-500.0,0.00019178,2]
[349692931,1737378646971,-500.0,0.00019178,2]
[349692933,1737378646983,-500.0,0.00019178,2]
[349692935,1737378647001,-500.0,0.00019178,2]
[349692937,1737378647012,-500.0,0.00019178,2]
[349692939,1737378647023,-500.0,0.00019178,2]
[349692941,1737378647034,-533.58,0.00019178,2]
[349692943,1737378647044,-500.0,0.00019178,2]
[349692945,1737378647053,-500.0,0.00019178,2]
[349692947,1737378647063,-500.0,0.00019178,2]
[349692949,1737378647072,-500.0,0.00019178,2]
[349692951,1737378647082,-611.42,0.00019178,2]
[349692953,1737378647092,-500.0,0.00019178,2]
[349692955,1737378647101,-534.73,0.00019178,2]
[349692957,1737378647111,-500.0,0.00019178,2]
[349692959,1737378647121,-500.0,0.00019178,2]
[349692961,1737378647132,-500.0,0.00019178,2]
[349692963,1737378647142,-500.0,0.00019178,2]
[349692965,1737378647152,-500.0,0.00019178,2]
[349692967,1737378647161,-547.1,0.00019178,2]
[349692969,1737378647170,-500.0,0.00019178,2]
[349692971,1737378647179,-795.89,0.00019178,2]
[349692973,1737378647189,-500.0,0.00019178,2]
[349692975,1737378647198,-500.0,0.00019178,2]
[349692977,1737378647207,-500.0,0.00019178,2]
[349692979,1737378647216,-500.0,0.00019178,2]
[349692981,1737378647226,-1570.41,0.00019178,2]
[349692983,1737378647235,-500.0,0.00019178,2]
[349692985,1737378647251,-1125.57,0.00019178,2]
[349692987,1737378647260,-500.0,0.00019178,2]
[349692989,1737378647269,-500.0,0.00019178,2]
[349692991,1737378647279,-500.0,0.00019178,2]
[349692993,1737378647288,-730.08,0.00019178,2]
[349692995,1737378647297,-500.0,0.00019178,2]
[349692997,1737378647307,-1039.72,0.00019178,2]
[349692999,1737378647316,-500.0,0.00019178,2]
[349693001,1737378647325,-500.0,0.00019178,2]
[349693003,1737378647335,-921.61,0.00019178,2]
[349693005,1737378647344,-1775.41,0.00019178,2]
[349693007,1737378647354,-1046.92,0.00019178,2]
[349693009,1737378647364,-229.35,0.00019246,2]
[349693011,1737378647373,-229.35,0.00019246,2]
[349693013,1737378647383,-646.3,0.00019255,2]
[349693015,1737378647396,-636.66,0.00019255,2]
[349693017,1737378647405,-551.56,0.00019255,2]
[349693019,1737378647414,-500.0,0.00019255,2]
[349693021,1737378647423,-458.970156,0.00019255,2]
[349693023,1737378647433,-1262.52,0.00019255,2]
[349693025,1737378647447,-500.0,0.00019255,2]
[349693027,1737378647457,-780.12,0.00019255,2]
[349693029,1737378647466,-500.0,0.00019255,2]
[349693031,1737378647476,-500.0,0.00019255,2]
[349693033,1737378647485,-583.406454,0.00019255,2]
[349693035,1737378647498,-1740.79,0.00019255,2]
[349693037,1737378647507,-627.77,0.00019255,2]
[349693039,1737378647516,-157.942876,0.00019255,2]
[349693041,1737378647525,-159.458688,0.00019255,2]
[349693043,1737378647535,-500.0,0.00019255,2]
[349693045,1737378647544,-500.0,0.00019255,2]
[349693047,1737378647553,-500.0,0.00019255,2]
[349693049,1737378647563,-2101.62,0.00019255,2]
[349693050,1737378647574,-1786.12,0.00019255,2]
[349693051,1737378647584,-797.86,0.00019255,2]
[349693052,1737378647593,-1512.71,0.00019255,2]
[349693053,1737378647602,-1791.77,0.00019255,2]
[349693054,1737378647611,-500.0,0.00019255,2]
[349693055,1737378647621,-1946.81,0.00019255,2]
[349693056,1737378647630,-1062.69,0.00019255,2]
[349693057,1737378647639,-500.0,0.00019255,2]
[349693058,1737378647648,-738.4,0.00019255,2]
[349693059,1737378647657,-1067.85,0.00019255,2]
[349693060,1737378647666,-845.45,0.00019255,2]
[349693062,1737378647675,-648.71,0.00019255,2]
[349693063,1737378647684,-2040.22,0.00019255,2]
[349693065,1737378647694,-500.0,0.00019255,2]
[349693067,1737378647703,-1345.13,0.00019255,2]
[349693069,1737378647712,-874.95,0.00019255,2]
[349693071,1737378647721,-612.17,0.00019255,2]
[349693073,1737378647730,-980.96,0.00019255,2]
[349693075,1737378647741,-500.0,0.00019255,2]
[349693077,1737378647750,-587.57,0.00019255,2]
[349693079,1737378647759,-951.31,0.00019255,2]
[349693081,1737378647768,-588.38,0.00019255,2]
[349693083,1737378647777,-1252.5,0.00019255,2]
[349693085,1737378647786,-932.38,0.00019255,2]
[349693087,1737378647796,-993.14,0.00019255,2]
[349693089,1737378647806,-696.52,0.00019255,2]
[349693091,1737378647816,-1866.58,0.00019255,2]
[349693093,1737378647825,-954.35,0.00019255,2]
[349693095,1737378647834,-500.0,0.00019255,2]
[349693097,1737378647844,-500.0,0.00019255,2]
[349693099,1737378647854,-1018.31,0.00019255,2]
[349693101,1737378647863,-2446.38,0.00019255,2]
[349693102,1737378647873,-500.0,0.00019255,2]
[349693104,1737378647883,-2409.54,0.00019255,2]
[349693106,1737378647892,-661.97,0.00019255,2]
[349693109,1737378647901,-1843.93,0.00019255,2]
[349693111,1737378647911,-507.21,0.00019255,2]
[349693113,1737378647920,-500.0,0.00019255,2]
[349693114,1737378647930,-500.0,0.00019255,2]
[349693117,1737378647939,-500.0,0.00019255,2]
[349693119,1737378647949,-2445.34,0.00019255,2]
[349693121,1737378647958,-500.0,0.00019255,2]
[349693122,1737378647967,-821.93,0.00019255,2]
[349693124,1737378647977,-500.0,0.00019255,2]
[349693126,1737378647986,-4166.4,0.00019255,2]
[349693128,1737378648000,-2757.26,0.00019255,2]
[349693131,1737378648010,-500.0,0.00019255,2]
[349693133,1737378648019,-346.98461568,0.00019255,2]
[349693135,1737378648029,-934.19,0.00019255,2]
[349693137,1737378648039,-2329.2,0.00019255,2]
[349693139,1737378648050,-500.0,0.00019255,2]
[349693140,1737378648059,-1273.23,0.00019255,2]
[349693142,1737378648069,-2083.64,0.00019255,2]
[349693145,1737378648079,-500.0,0.00019255,2]
[349693146,1737378648088,-1223.84,0.00019255,2]
[349693148,1737378648098,-500.0,0.00019256,2]
[349693150,1737378648107,-500.0,0.00019256,2]
[349693152,1737378648116,-500.0,0.00019256,2]
[349693154,1737378648126,-244.20159984,0.00019256,2]
[349693156,1737378648136,-267.78482446,0.00019256,2]
[349693158,1737378648146,-500.0,0.00019256,2]
[349693160,1737378648155,-500.0,0.00019256,2]
[349693162,1737378648165,-500.0,0.00019256,2]
[349693164,1737378648178,-500.0,0.00019256,2]
[349693166,1737378648187,-532.61435583,0.00019256,2]
[349693168,1737378648198,-642.84881495,0.00019256,2]
[349693170,1737378648207,-500.0,0.00019256,2]
[349693172,1737378648217,-500.0,0.00019256,2]
[349693174,1737378648226,-500.0,0.00019256,2]
[349693176,1737378648236,-500.0,0.00019256,2]
[349693178,1737378648248,-500.0,0.00019256,2]
[349693180,1737378648258,-500.0,0.00019256,2]
[349693182,1737378648267,-706.6,0.00019256,2]
[349693184,1737378648277,-500.0,0.00019256,2]
[349693186,1737378648286,-500.0,0.00019256,2]
[349693188,1737378648296,-500.0,0.00019256,2]
[349693190,1737378648306,-500.0,0.00019256,2]
[349693192,1737378648315,-500.0,0.00019256,2]
[349693194,1737378648325,-500.0,0.00019256,2]
[349693196,1737378648334,-500.0,0.00019256,2]
[349693198,1737378648344,-1556.29,0.00019256,2]
[349693200,1737378648354,-500.0,0.00019256,2]
[349693202,1737378648363,-500.0,0.00019256,2]
[349693204,1737378648373,-500.0,0.00019256,2]
[349693206,1737378648383,-500.0,0.00019256,2]
[349693208,1737378648392,-504.17519906,0.00019256,2]
[349693211,1737378648406,-500.0,0.00019256,2]
[349693213,1737378648415,-500.0,0.00019256,2]
[349693215,1737378648425,-500.0,0.00019256,2]
[349693216,1737378648435,-500.0,0.00019256,2]
[349693218,1737378648444,-500.0,0.00019256,2]
[349693221,1737378648454,-500.0,0.00019256,2]
[349693222,1737378648464,-500.0,0.00019256,2]
[349693225,1737378648474,-500.0,0.00019256,2]
[349693227,1737378648485,-431.31272001,0.00019256,2]
[349693228,1737378648498,-500.0,0.00019256,2]
[349693231,1737378648507,-269.73029639,0.00019256,2]
[349693232,1737378648516,-500.0,0.00019256,2]
[349693234,1737378648526,-500.0,0.00019256,2]
[349693236,1737378648536,-500.0,0.00019256,2]
[349693238,1737378648546,-500.0,0.00019256,2]
[349693240,1737378648555,-500.0,0.00019256,2]
[349693243,1737378648566,-500.0,0.00019256,2]
[349693244,1737378648576,-500.0,0.00019256,2]
[349693246,1737378648586,-500.0,0.00019256,2]
[349693248,1737378648595,-500.0,0.00019256,2]
[349693251,1737378648604,-500.0,0.00019256,2]
[349693252,1737378648614,-500.0,0.00019256,2]
[349693255,1737378648623,-511.35,0.00019256,2]
[349693256,1737378648633,-500.0,0.00019256,2]
[349693258,1737378648642,-500.0,0.00019256,2]
[349693260,1737378648652,-500.0,0.00019256,2]
[349693262,1737378648661,-500.0,0.00019256,2]
[349693264,1737378648670,-500.0,0.00019256,2]
[349693266,1737378648680,-500.0,0.00019256,2]
[349693268,1737378648689,-500.0,0.00019256,2]
[349693270,1737378648698,-170.28923409,0.00019256,2]
[349693272,1737378648707,-500.0,0.00019256,2]
[349693274,1737378648717,-540.09641533,0.00019256,2]
[349693276,1737378648727,-500.0,0.00019256,2]
[349693278,1737378648736,-500.0,0.00019256,2]
[349693280,1737378648747,-500.0,0.00019256,2]
[349693282,1737378648756,-500.0,0.00019256,2]
[349693284,1737378648766,-500.0,0.00019256,2]
[349693286,1737378648776,-500.0,0.00019256,2]
[349693288,1737378648785,-500.0,0.00019256,2]
[349693290,1737378648795,-500.0,0.00019256,2]
[349693292,1737378648804,-500.0,0.00019256,2]
[349693294,1737378648814,-500.0,0.00019256,2]
[349693296,1737378648823,-500.0,0.00019256,2]
[349693298,1737378648833,-512.1,0.00019256,2]
[349693300,1737378648842,-500.0,0.00019256,2]
[349693302,1737378648851,-500.0,0.00019256,2]
[349693304,1737378648860,-500.0,0.00019256,2]
[349693306,1737378648869,-500.0,0.00019256,2]
[349693308,1737378648879,-500.0,0.00019256,2]
[349693310,1737378648888,-500.0,0.00019256,2]
[349693312,1737378648897,-500.0,0.00019256,2]
[349693314,1737378648908,-500.0,0.00019256,2]
[349693316,1737378648917,-500.0,0.00019256,2]
[349693318,1737378648927,-500.0,0.00019256,2]
[349693320,1737378648936,-500.0,0.00019256,2]
[349693322,1737378648946,-500.0,0.00019256,2]
[349693324,1737378648955,-500.0,0.00019256,2]
[349693326,1737378648964,-500.0,0.00019256,2]
[349693328,1737378648973,-500.0,0.00019256,2]
[349693330,1737378648981,-425.17470409,0.00019256,2]
[349693332,1737378648992,-500.0,0.00019256,2]
[349693334,1737378649002,-500.0,0.00019256,2]
[349693336,1737378649012,-500.0,0.00019256,2]
[349693338,1737378649021,-500.0,0.00019256,2]
[349693340,1737378649030,-500.0,0.00019256,2]
[349693342,1737378649039,-500.0,0.00019256,2]
[349693344,1737378649049,-500.0,0.00019256,2]
[349693346,1737378649058,-500.0,0.00019256,2]
[349693348,1737378649068,-500.0,0.00019256,2]
[349693350,1737378649076,-500.0,0.00019256,2]
[349693352,1737378649086,-500.0,0.00019256,2]
[349693353,1737378649095,-500.0,0.00019256,2]
[349693355,1737378649105,-500.0,0.00019256,2]
[349693357,1737378649114,-500.0,0.00019256,2]
[349693359,1737378649123,-500.0,0.00019256,2]
[349693362,1737378649132,-500.0,0.00019256,2]
[349693363,1737378649142,-500.0,0.00019256,2]
[349693365,1737378649151,-500.0,0.00019256,2]
[349693367,1737378649160,-500.0,0.00019256,2]
[349693369,1737378649170,-500.0,0.00019256,2]
[349693371,1737378649179,-500.0,0.00019256,2]
[349693373,1737378649188,-592.85,0.00019256,2]
[349693375,1737378649197,-500.0,0.00019256,2]
[349693377,1737378649206,-511.38587034,0.00019256,2]
[349693379,1737378649215,-344.56080896,0.00019256,2]
[349693381,1737378649225,-500.0,0.00019256,2]
[349693383,1737378649234,-500.0,0.00019256,2]
[349693385,1737378649244,-739.3,0.00019256,2]
[349693387,1737378649253,-500.0,0.00019256,2]
[349693389,1737378649263,-500.0,0.00019256,2]
[349693391,1737378649273,-500.0,0.00019256,2]
[349693393,1737378649282,-500.0,0.00019256,2]
[349693395,1737378649291,-596.17908673,0.00019256,2]
[349693397,1737378649300,-500.0,0.00019256,2]
[349693399,1737378649309,-500.0,0.00019256,2]
[349693401,1737378649318,-500.0,0.00019256,2]
[349693404,1737378649328,-500.0,0.00019256,2]
[349693405,1737378649337,-500.0,0.00019256,2]
[349693407,1737378649346,-500.0,0.00019256,2]
[349693409,1737378649355,-504.93,0.00019256,2]
[349693412,1737378649366,-500.0,0.00019256,2]
[349693413,1737378649375,-500.0,0.00019256,2]
[349693415,1737378649386,-500.0,0.00019256,2]
[349693417,1737378649399,-500.0,0.00019256,2]
[349693419,1737378649409,-500.0,0.00019256,2]
[349693421,1737378649418,-500.0,0.00019256,2]
[349693423,1737378649427,-500.0,0.00019256,2]
[349693426,1737378649438,-500.0,0.00019256,2]
[349693428,1737378649449,-500.0,0.00019256,2]
[349693429,1737378649458,-510.0116926,0.00019256,2]
[349693432,1737378649468,-545.25,0.00019256,2]
[349693434,1737378649479,-500.0,0.00019256,2]
[349693435,1737378649489,-524.70756169,0.00019256,2]
[349693438,1737378649500,-500.0,0.00019256,2]
[349693440,1737378649510,-500.0,0.00019256,2]
[349693442,1737378649519,-500.0,0.00019256,2]
[349693443,1737378649528,-500.0,0.00019256,2]
[349693445,1737378649537,-500.0,0.00019256,2]
[349693447,1737378649547,-500.0,0.00019256,2]
[349693450,1737378649557,-500.0,0.00019256,2]
[349693452,1737378649567,-500.0,0.00019256,2]
[349693454,1737378649577,-500.0,0.00019256,2]
[349693456,1737378649586,-500.0,0.00019256,2]
[349693458,1737378649596,-1085.54,0.00019256,2]
[349693460,1737378649605,-500.0,0.00019256,2]
[349693462,1737378649614,-503.54532485,0.00019256,2]
[349693464,1737378649624,-1313.34,0.00019256,2]
[349693466,1737378649633,-500.0,0.00019256,2]
[349693468,1737378649642,-500.0,0.00019256,2]
[349693470,1737378649652,-500.0,0.00019256,2]
[349693472,1737378649661,-287.69357273,0.00019256,2]
[349693474,1737378649670,-327.50616834,0.00019256,2]
[349693476,1737378649679,-500.0,0.00019256,2]
[349693478,1737378649688,-568.26344229,0.00019256,2]
[349693479,1737378649697,-500.0,0.00019256,2]
[349693482,1737378649706,-500.0,0.00019256,2]
[349693483,1737378649715,-500.0,0.00019256,2]
[349693485,1737378649725,-1338.14,0.00019256,2]
[349693487,1737378649734,-500.0,0.00019256,2]
[349693489,1737378649744,-1274.56,0.00019256,2]
[349693492,1737378649753,-500.0,0.00019256,2]
[349693493,1737378649762,-556.12,0.00019256,2]
[349693495,1737378649771,-451.52926538,0.00019256,2]
[349693497,1737378649780,-828.86,0.00019256,2]
[349693499,1737378649790,-506.99809768,0.00019256,2]
[349693502,1737378649799,-500.0,0.00019256,2]
[349693504,1737378649809,-682.06,0.00019256,2]
[349693505,1737378649818,-500.0,0.00019256,2]
[349693507,1737378649827,-500.0,0.00019256,2]
[349693510,1737378649837,-500.0,0.00019256,2]
[349693511,1737378649846,-500.0,0.00019256,2]
[349693513,1737378649855,-507.66420729,0.00019256,2]
[349693516,1737378649865,-505.78132252,0.00019256,2]
[349693517,1737378649874,-500.0,0.00019256,2]
[349693520,1737378649885,-1079.79,0.00019256,2]
[349693522,1737378649895,-503.13034414,0.00019256,2]
[349693524,1737378649905,-500.0,0.00019256,2]
[349693526,1737378649914,-500.0,0.00019256,2]
[349693528,1737378649924,-500.0,0.00019256,2]
[349693530,1737378649933,-500.0,0.00019256,2]
[349693531,1737378649943,-500.0,0.00019256,2]
[349693533,1737378649953,-500.0,0.00019256,2]
[349693535,1737378649962,-500.0,0.00019256,2]
[349693537,1737378649971,-500.0,0.00019256,2]
[349693539,1737378649981,-1320.04,0.00019256,2]
[349693541,1737378649991,-500.0,0.00019256,2]
[349693543,1737378650001,-500.0,0.00019256,2]
[349693545,1737378650010,-500.0,0.00019256,2]
[349693547,1737378650019,-500.0,0.00019256,2]
[349693549,1737378650028,-500.0,0.00019256,2]
[349693551,1737378650038,-1030.28,0.00019256,2]
[349693553,1737378650047,-500.0,0.00019256,2]
[349693554,1737378650057,-500.0,0.00019256,2]
[349693555,1737378650066,-697.24,0.00019256,2]
[349693556,1737378650076,-500.0,0.00019256,2]
[349693557,1737378650085,-500.0,0.00019256,2]
[349693558,1737378650094,-627.9,0.00019256,2]
[349693559,1737378650103,-500.0,0.00019256,2]
[349693560,1737378650112,-500.0,0.00019256,2]
[349693561,1737378650121,-500.0,0.00019256,2]
[349693562,1737378650130,-500.0,0.00019256,2]
[349693563,1737378650139,-500.0,0.00019256,2]
[349693565,1737378650147,-1035.16,0.00019256,2]
[349693567,1737378650157,-500.0,0.00019256,2]
[349693569,1737378650166,-521.18,0.00019256,2]
[349693571,1737378650175,-500.0,0.00019256,2]
[349693572,1737378650184,-500.0,0.00019256,2]
[349693573,1737378650194,-500.0,0.00019256,2]
[349693574,1737378650203,-576.91,0.00019256,2]
[349693575,1737378650212,-500.0,0.00019256,2]
[349693576,1737378650221,-500.0,0.00019256,2]
[349693577,1737378650230,-500.0,0.00019256,2]
[349693578,1737378650240,-500.0,0.00019256,2]
[349693580,1737378650253,-500.0,0.00019256,2]
[349693582,1737378650262,-609.29003657,0.00019256,2]
[349693584,1737378650272,-500.0,0.00019256,2]
[349693585,1737378650282,-414.05374886,0.00019256,2]
[349693588,1737378885587,170.16,0.00010137,2]
[349693593,1737379508528,99829.84,0.00012,2]
[349693594,1737379508550,100000.0,0.00012,2]
[349693595,1737379508576,118711.2281762,0.00012,2]
[349693621,1737379832200,-1757.77537063,0.0001439,2]
[349693622,1737379832210,-550.0,0.00015,2]
[349693623,1737379832225,-779.13,0.000165,2]
[349693624,1737379832235,-1703.0,0.000175,5]
[349693625,1737379832244,-3434.85,0.00017818,2]
[349693626,1737379832253,-176.42,0.00017948,2]
[349693627,1737379832262,-914.17225847,0.00017948,2]
[349693628,1737379832271,-214.05,0.00018082,2]
[349693629,1737379832280,-250.0,0.00018143,2]
[349693630,1737379832290,-500.0,0.00018164,2]
[349693631,1737379832299,-366.47,0.00018184,2]
[349693632,1737379832309,-774.15,0.00018227,2]
[349693633,1737379832318,-250.0,0.00018271,2]
[349693634,1737379832328,-1000.0,0.00018497,2]
[349693635,1737379832338,-176.41,0.00018541,2]
[349693636,1737379832347,-424.67,0.00018545,2]